[Event "Hector S Nazzari Memorial 2019"]
[Site "Montevideo"]
[Date "2019.10.14"]
[Round "1.9"]
[White "Gomez Troccoli, Martin"]
[Black "Curi, Gabriel"]
[Result "1/2-1/2"]
[ECO "C06"]
[WhiteElo "1961"]
[BlackElo "2194"]
[Annotator "RC"]
[PlyCount "70"]
[EventDate "2019.10.14"]
[EventType "swiss"]
[EventCountry "URU"]
[SourceTitle "playchess.com"]
[Source "ChessBase"]
[SourceQuality "1"]
[TimeControl "5400+30"]

1. e4 {[%emt 0:00:00]} e6 {[%emt 0:00:00]} 2. d4 {[%emt 0:00:00]} d5 {[%emt 0:00:00]} 3. Nd2 {[%emt 0:00:00]} Nf6 {[%emt 0:00:06]} 4. e5 {[%emt 0:00:00]} Nfd7 {[%emt 0:00:04]} 5. Bd3 {[%emt 0:00:00]} c5 {[%emt 0:00:06]} 6. c3 {[%emt 0:00:00]} Nc6 {[%emt 0:00:06]} 7. Ne2 {[%emt 0:00:00]} cxd4 {[%emt 0:00:31]} 8. cxd4 {[%emt 0:00:03]} f6 {[%emt 0:01:08]} 9. exf6 {[%emt 0:00:10]} Nxf6 {[%emt 0:00:32]} 10. Nf3 {[%emt 0:00:11]} Bd6 {[%emt 0:00:06]} 11. O-O {[%emt 0:00:06]} Qc7 {[%emt 0:04:17]} 12. Bg5 {[%emt 0:00:28]} O-O {[%emt 0:00:08]} 13. Qc2 {[%emt 0:06:47]} Nb4 {[%emt 0:12:46]} 14. Qxc7 {[%emt 0:00:37]} Bxc7 {[%emt 0:00:06]} 15. Bb1 {[%emt 0:00:12]} Bd7 {[%emt 0:00:08]} 16. a3 {[%emt 0:00:33]} Bb5 {[%emt 0:03:23]} 17. axb4 {[%emt 0:06:03]} Bxe2 {[%emt 0:00:09]} 18. Re1 {[%emt 0:00:33]} Bxf3 {[%emt 0:00:05]} 19. gxf3 {[%emt 0:00:03]} Bb6 {[%emt 0:00:00]} 20. Rxe6 {[%emt 0:04:36]} Bxd4 {[%emt 0:06:48]} 21. Ba2 {[%emt 0:18:01]} Rfd8 {[%emt 0:15:01]} 22. Re7 {[%emt 0:12:21]} b6 {[%emt 0:05:15]} 23. Re2 {[%emt 0:08:54]} a5 {[%emt 0:11:55]} 24. Bb3 {[%emt 0:07:31]} axb4 {[%emt 0:14:55]} 25. Rd1 {[%emt 0:03:20]} Bc5 {[%emt 0:00:26]} 26. Re5 {[%emt 0:04:58]} Ra7 27. Bxf6 {[%emt 0:01:30]} gxf6 {[%emt 0:03:51]} 28. Rexd5 {[%emt 0:01:20]} Rxd5 {[%emt 0:00:14]} 29. Rxd5 {[%emt 0:00:18]} Kg7 {[%emt 0:00:24]} 30. Kg2 {[%emt 0:00:31]} Re7 {[%emt 0:01:56]} 31. Bc4 {[%emt 0:00:41]} h6 {[%emt 0:02:00]} 32. Rd8 {[%emt 0:01:49]} Re5 {[%emt 0:01:33]} 33. h4 {[%emt 0:00:49]} Re1 {[%emt 0:03:39]} 34. Rd7+ {[%emt 0:05:15]} Re7 {[%emt 0:00:11]} 35. Rd1 {[%emt 0:00:22]} Kf8 {[%emt 0:01:20]} 1/2-1/2

[Event "Hector S Nazzari Memorial 2019"]
[Site "Montevideo"]
[Date "2019.10.14"]
[Round "1.10"]
[White "Carvalho, Guillermo"]
[Black "Rodriguez Farias, Eduardo"]
[Result "1-0"]
[ECO "A49"]
[WhiteElo "2183"]
[BlackElo "1931"]
[Annotator "RC"]
[PlyCount "89"]
[EventDate "2019.10.14"]
[EventType "swiss"]
[EventCountry "URU"]
[SourceTitle "playchess.com"]
[Source "ChessBase"]
[SourceQuality "1"]
[TimeControl "5400+30"]

1. Nf3 {[%emt 0:00:00]} Nf6 {[%emt 0:01:05]} 2. d4 {[%emt 0:00:05]} g6 {[%emt 0:01:03]} 3. g3 {[%emt 0:00:05]} Bg7 {[%emt 0:00:25]} 4. Bg2 {[%emt 0:00:05]} O-O {[%emt 0:01:06]} 5. O-O {[%emt 0:00:07]} d6 {[%emt 0:00:13]} 6. b3 {[%emt 0:00:06]} Nbd7 {[%emt 0:03:12]} 7. Bb2 {[%emt 0:00:10]} Re8 {[%emt 0:00:28]} 8. Nbd2 {[%emt 0:09:24]} e5 {[%emt 0:06:11]} 9. dxe5 {[%emt 0:03:18]} dxe5 {[%emt 0:00:14]} 10. e4 {[%emt 0:21:38]} b6 {[%emt 0:11:06]} 11. Qe2 {[%emt 0:06:28]} a5 {[%emt 0:03:05]} 12. Rfd1 {[%emt 0:00:53]} Qe7 {[%emt 0:00:37]} 13. Qe1 {[%emt 0:00:52]} Bb7 {[%emt 0:02:52]} 14. h3 {[%emt 0:05:56]} Qc5 {[%emt 0:08:17]} 15. Nc4 {[%emt 0:13:00]} b5 {[%emt 0:06:16]} 16. Nxa5 {[%emt 0:03:18]} Bxe4 {[%emt 0:20:08]} 17. b4 {[%emt 0:02:58]} Qxc2 {[%emt 0:07:34]} 18. Rd2 {[%emt 0:01:13]} Qa4 {[%emt 0:00:07]} 19. Rxd7 {[%emt 0:06:33]} Rxa5 {[%emt 0:08:45]} 20. Rxc7 {[%emt 0:08:24]} Ra7 {[%emt 0:02:50]} 21. Rxa7 {[%emt 0:01:43]} Qxa7 {[%emt 0:00:16]} 22. a3 {[%emt 0:02:20]} Bd5 {[%emt 0:06:53]} 23. Rd1 {[%emt 0:00:53]} Bc4 {[%emt 0:00:57]} 24. Nd2 {[%emt 0:03:30]} Bd3 {[%emt 0:00:12]} 25. Ne4 {[%emt 0:00:39]} Nxe4 {[%emt 0:01:29]} 26. Rxd3 {[%emt 0:01:29]} Nf6 {[%emt 0:00:38]} 27. Bc6 {[%emt 0:02:50]} Rc8 {[%emt 0:01:30]} 28. Bxb5 {[%emt 0:01:57]} Nh5 {[%emt 0:00:34]} 29. Qd2 {[%emt 0:01:39]} Bf6 {[%emt 0:03:10]} 30. Rd7 {[%emt 0:01:48]} Qb6 {[%emt 0:00:20]} 31. Qd5 {[%emt 0:00:34]} Rf8 {[%emt 0:02:32]} 32. Bxe5 {[%emt 0:00:51]} Bxe5 {[%emt 0:00:23]} 33. Qxe5 {[%emt 0:00:10]} Nxg3 {[%emt 0:00:05]} 34. Qxg3 {[%emt 0:01:01]} Qxb5 {[%emt 0:00:01]} 35. Qd3 {[%emt 0:00:51]} Qg5+ {[%emt 0:00:20]} 36. Kh2 {[%emt 0:00:17]} Qe5+ {[%emt 0:00:12]} 37. Qg3 {[%emt 0:00:14]} Qf5 {[%emt 0:01:52]} 38. Rb7 {[%emt 0:00:46]} Re8 {[%emt 0:00:17]} 39. Rb8 {[%emt 0:00:22]} Rxb8 {[%emt 0:00:24]} 40. Qxb8+ Kg7 {[%emt 0:00:14]} 41. Qg3 {[%emt 0:00:17]} Qc2 {[%emt 0:00:33]} 42. Qe5+ {[%emt 0:00:54]} Kh6 {[%emt 0:00:28]} 43. Qc5 {[%emt 0:00:25]} Qa4 {[%emt 0:00:30]} 44. Qf8+ {[%emt 0:00:45]} Kh5 {[%emt 0:00:29]} 45. Qxf7 {[%emt 0:00:19]} 1-0

[Event "Hector S Nazzari Memorial 2019"]
[Site "Montevideo"]
[Date "2019.10.14"]
[Round "1.11"]
[White "Ramos Correa, Gabriel"]
[Black "Lopez Falcon, Jorge"]
[Result "0-1"]
[ECO "A60"]
[WhiteElo "1889"]
[BlackElo "2166"]
[Annotator "RC"]
[PlyCount "82"]
[EventDate "2019.10.14"]
[EventType "swiss"]
[EventCountry "URU"]
[SourceTitle "playchess.com"]
[Source "ChessBase"]
[SourceQuality "1"]
[TimeControl "5400+30"]

1. d4 {[%emt 0:00:00]} Nf6 {[%emt 0:00:06]} 2. c4 {[%emt 0:00:00]} c5 {[%emt 0:02:44]} 3. d5 {[%emt 0:00:04]} e6 {[%emt 0:00:21]} 4. Nc3 {[%emt 0:00:15]} exd5 {[%emt 0:00:10]} 5. cxd5 {[%emt 0:00:02]} Bd6 {[%emt 0:00:30]} 6. Nf3 {[%emt 0:02:42]} O-O {[%emt 0:00:55]} 7. Bg5 {[%emt 0:03:17]} Re8 {[%emt 0:01:41]} 8. e3 {[%emt 0:02:01]} Bc7 {[%emt 0:01:02]} 9. Bd3 {[%emt 0:07:05]} d6 {[%emt 0:03:30]} 10. h3 {[%emt 0:02:32]} Nbd7 {[%emt 0:00:10]} 11. O-O {[%emt 0:03:12]} h6 {[%emt 0:05:21]} 12. Bh4 {[%emt 0:01:28]} Ba5 {[%emt 0:05:51]} 13. e4 {[%emt 0:19:36]} a6 {[%emt 0:07:01]} 14. a4 {[%emt 0:00:23]} Nf8 {[%emt 0:01:03]} 15. Qc2 {[%emt 0:07:38]} Ng6 {[%emt 0:02:29]} 16. Bg3 {[%emt 0:00:24]} Nh5 {[%emt 0:02:59]} 17. Bh2 {[%emt 0:01:10]} Qf6 {[%emt 0:01:15]} 18. e5 {[%emt 0:07:22]} Nxe5 {[%emt 0:08:37]} 19. Nxe5 {[%emt 0:02:32]} dxe5 {[%emt 0:06:24]} 20. Ne4 {[%emt 0:00:20]} Qd8 {[%emt 0:04:13]} 21. Qxc5 {[%emt 0:02:06]} Bb6 {[%emt 0:06:29]} 22. Qc4 {[%emt 0:05:05]} Bd4 {[%emt 0:02:01]} 23. Qb3 {[%emt 0:05:45]} Nf6 {[%emt 0:05:32]} 24. Nxf6+ {[%emt 0:02:38]} Qxf6 {[%emt 0:00:15]} 25. Be4 {[%emt 0:03:33]} b6 {[%emt 0:07:06]} 26. Kh1 {[%emt 0:04:17]} Bf5 {[%emt 0:06:55]} 27. f3 {[%emt 0:01:17]} Bd7 {[%emt 0:01:27]} 28. f4 {[%emt 0:07:33]} Qd6 {[%emt 0:02:47]} 29. fxe5 {[%emt 0:00:37]} Bxe5 {[%emt 0:00:12]} 30. Bxe5 {[%emt 0:01:18]} Rxe5 {[%emt 0:00:02]} 31. Qg3 {[%emt 0:01:18]} Rae8 {[%emt 0:00:36]} 32. Qf4 {[%emt 0:01:50]} Qe7 {[%emt 0:01:53]} 33. Bf3 {[%emt 0:01:49]} Rc8 {[%emt 0:04:06]} 34. Qd4 {[%emt 0:01:17]} Qd6 {[%emt 0:01:30]} 35. Rfe1 {[%emt 0:01:40]} Rxe1+ {[%emt 0:00:43]} 36. Rxe1 {[%emt 0:00:02]} Qg3 {[%emt 0:00:36]} 37. Rf1 {[%emt 0:01:04]} Bxh3 {[%emt 0:02:38]} 38. Qxb6 {[%emt 0:01:59]} Rc2 {[%emt 0:03:50]} 39. Qd8+ {[%emt 0:00:29]} Kh7 {[%emt 0:00:07]} 40. Be4+ {[%emt 0:00:15]} f5 {[%emt 0:00:01]} 41. Rxf5 {[%emt 0:00:33]} Bxg2+ {[%emt 0:00:22]} 0-1

[Event "Hector S Nazzari Memorial 2019"]
[Site "Montevideo"]
[Date "2019.10.14"]
[Round "1.12"]
[White "Granara Barreto, Sebastian"]
[Black "Belistri, Ubaldo"]
[Result "1-0"]
[ECO "A39"]
[WhiteElo "2134"]
[BlackElo "1853"]
[Annotator "RC"]
[PlyCount "89"]
[EventDate "2019.10.14"]
[EventType "swiss"]
[EventCountry "URU"]
[SourceTitle "playchess.com"]
[Source "ChessBase"]
[SourceQuality "1"]
[TimeControl "5400+30"]

1. c4 {[%emt 0:00:00]} Nf6 {[%emt 0:00:00]} 2. g3 {[%emt 0:00:00]} g6 {[%emt 0:01:00]} 3. Bg2 {[%emt 0:00:00]} c5 {[%emt 0:01:00]} 4. Nc3 {[%emt 0:00:19]} Bg7 {[%emt 0:00:41]} 5. Nf3 {[%emt 0:00:26]} Nc6 {[%emt 0:00:23]} 6. O-O {[%emt 0:00:08]} O-O {[%emt 0:00:26]} 7. d4 {[%emt 0:00:11]} cxd4 {[%emt 0:00:37]} 8. Nxd4 {[%emt 0:00:05]} Nxd4 {[%emt 0:06:23]} 9. Qxd4 {[%emt 0:00:06]} d6 {[%emt 0:00:14]} 10. Bg5 {[%emt 0:03:21]} Be6 {[%emt 0:04:24]} 11. Qd3 {[%emt 0:04:47]} h6 {[%emt 0:05:41]} 12. Bd2 {[%emt 0:03:59]} Nd7 {[%emt 0:02:45]} 13. b3 {[%emt 0:04:22]} Ne5 {[%emt 0:02:04]} 14. Qc2 {[%emt 0:00:44]} Nc6 {[%emt 0:01:31]} 15. Be3 {[%emt 0:02:57]} Qa5 {[%emt 0:04:56]} 16. Rac1 {[%emt 0:03:48]} Rac8 {[%emt 0:06:59]} 17. Qd2 {[%emt 0:04:37]} Kh7 {[%emt 0:00:36]} 18. Rfd1 {[%emt 0:01:00]} Qh5 {[%emt 0:05:11]} 19. Nd5 {[%emt 0:16:03]} Bd7 {[%emt 0:09:13]} 20. Nf4 {[%emt 0:07:25]} Qe5 {[%emt 0:00:43]} 21. c5 {[%emt 0:03:13]} Bf5 {[%emt 0:05:23]} 22. h3 {[%emt 0:19:43]} Rfd8 {[%emt 0:01:43]} 23. Qe1 {[%emt 0:05:45]} dxc5 {[%emt 0:02:12]} 24. Rxc5 {[%emt 0:01:25]} Qb2 {[%emt 0:03:06]} 25. g4 {[%emt 0:02:40]} Bd7 {[%emt 0:02:46]} 26. Rd2 {[%emt 0:07:24]} Qa3 {[%emt 0:01:58]} 27. Qb1 {[%emt 0:04:19]} Be8 {[%emt 0:02:57]} 28. Rxd8 {[%emt 0:03:07]} Rxd8 {[%emt 0:00:06]} 29. Rd5 {[%emt 0:01:19]} Rxd5 {[%emt 0:02:05]} 30. Nxd5 {[%emt 0:00:06]} e6 {[%emt 0:01:41]} 31. Nc7 {[%emt 0:01:00]} Bd7 {[%emt 0:00:26]} 32. Qd1 {[%emt 0:00:48]} Bc8 {[%emt 0:01:44]} 33. Nb5 {[%emt 0:00:22]} Qxa2 {[%emt 0:00:37]} 34. Nd6 {[%emt 0:00:22]} Ne7 {[%emt 0:01:15]} 35. Nxf7 {[%emt 0:00:56]} b6 {[%emt 0:04:07]} 36. Bd4 {[%emt 0:00:34]} Ba6 {[%emt 0:01:05]} 37. Bf3 {[%emt 0:00:12]} Nd5 {[%emt 0:01:25]} 38. Bxg7 {[%emt 0:00:24]} Kxg7 {[%emt 0:00:11]} 39. Nd8 {[%emt 0:00:23]} Kf6 {[%emt 0:02:02]} 40. Qd4+ {[%emt 0:00:48]} Ke7 {[%emt 0:00:55]} 41. Nxe6 {[%emt 0:00:40]} Nf6 {[%emt 0:01:00]} 42. Nf4 {[%emt 0:00:32]} Qxb3 {[%emt 0:02:30]} 43. Qe5+ {[%emt 0:00:07]} Kf7 {[%emt 0:00:51]} 44. Qc7+ {[%emt 0:00:12]} Kg8 {[%emt 0:00:52]} 45. Qb8+ {[%emt 0:00:19]} 1-0

[Event "Hector S Nazzari Memorial 2019"]
[Site "Montevideo"]
[Date "2019.10.14"]
[Round "1.13"]
[White "Palacio, Enzo"]
[Black "Dominguez, Facundo"]
[Result "0-1"]
[ECO "C04"]
[WhiteElo "1780"]
[BlackElo "2130"]
[Annotator "RC"]
[PlyCount "74"]
[EventDate "2019.10.14"]
[EventType "swiss"]
[EventCountry "URU"]
[SourceTitle "playchess.com"]
[Source "ChessBase"]
[SourceQuality "1"]
[TimeControl "5400+30"]

1. e4 {[%emt 0:00:00]} e6 {[%emt 0:00:12]} 2. d4 {[%emt 0:00:00]} d5 {[%emt 0:00:05]} 3. Nd2 {[%emt 0:00:00]} Nc6 {[%emt 0:00:25]} 4. Ngf3 {[%emt 0:01:16]} Nf6 {[%emt 0:00:08]} 5. e5 {[%emt 0:03:11]} Nd7 {[%emt 0:00:24]} 6. c3 {[%emt 0:00:41]} f6 {[%emt 0:00:17]} 7. exf6 {[%emt 0:00:15]} Qxf6 {[%emt 0:00:06]} 8. Bd3 {[%emt 0:01:15]} Bd6 {[%emt 0:00:43]} 9. O-O {[%emt 0:00:49]} O-O {[%emt 0:00:30]} 10. Bb5 {[%emt 0:07:56]} a6 {[%emt 0:08:56]} 11. Bxc6 {[%emt 0:00:03]} bxc6 {[%emt 0:00:09]} 12. Re1 {[%emt 0:02:06]} e5 {[%emt 0:15:55]} 13. dxe5 {[%emt 0:00:25]} Nxe5 {[%emt 0:00:07]} 14. Nxe5 {[%emt 0:04:14]} Bxe5 {[%emt 0:00:13]} 15. Qe2 {[%emt 0:02:31]} Re8 {[%emt 0:07:56]} 16. Kh1 {[%emt 0:09:09]} Bd7 {[%emt 0:03:20]} 17. Qf3 {[%emt 0:08:59]} Bxc3 {[%emt 0:01:11]} 18. Rd1 {[%emt 0:11:37]} Bxb2 {[%emt 0:07:50]} 19. Bxb2 {[%emt 0:00:45]} Qxb2 {[%emt 0:00:03]} 20. h3 {[%emt 0:02:11]} Qf6 {[%emt 0:05:36]} 21. Rac1 {[%emt 0:05:31]} Rab8 {[%emt 0:05:33]} 22. Kg1 {[%emt 0:02:30]} Rb2 {[%emt 0:02:02]} 23. a4 {[%emt 0:05:29]} Qxf3 {[%emt 0:10:40]} 24. Nxf3 {[%emt 0:00:02]} Ree2 {[%emt 0:00:39]} 25. Rf1 {[%emt 0:00:05]} Re4 {[%emt 0:01:46]} 26. Rfe1 {[%emt 0:02:15]} Rxe1+ {[%emt 0:03:56]} 27. Rxe1 {[%emt 0:00:02]} Kf8 {[%emt 0:00:45]} 28. Ne5 {[%emt 0:00:42]} Be8 {[%emt 0:01:07]} 29. Rc1 {[%emt 0:00:27]} Ke7 {[%emt 0:04:12]} 30. Nxc6+ {[%emt 0:00:22]} Kd6 {[%emt 0:00:18]} 31. Nd4 {[%emt 0:00:22]} Bd7 {[%emt 0:00:50]} 32. a5 {[%emt 0:04:08]} c5 {[%emt 0:01:15]} 33. Nf3 {[%emt 0:00:43]} d4 {[%emt 0:00:30]} 34. Ng5 {[%emt 0:01:07]} Kd5 {[%emt 0:01:26]} 35. Nxh7 {[%emt 0:01:21]} d3 {[%emt 0:00:21]} 36. Ng5 {[%emt 0:02:39]} d2 {[%emt 0:00:24]} 37. Ra1 {[%emt 0:00:05]} Ba4 {[%emt 0:00:20]} 0-1

[Event "Hector S Nazzari Memorial 2019"]
[Site "Montevideo"]
[Date "2019.10.16"]
[Round "2.10"]
[White "Carbone, Diego"]
[Black "Soto, Nicolas"]
[Result "1-0"]
[ECO "D12"]
[WhiteElo "2233"]
[BlackElo "2013"]
[Annotator "RC"]
[PlyCount "135"]
[EventDate "2019.10.14"]
[EventType "swiss"]
[EventCountry "URU"]
[SourceTitle "playchess.com"]
[Source "ChessBase"]
[SourceQuality "1"]
[TimeControl "5400+30"]

1. d4 {[%emt 0:00:00]} d5 {[%emt 0:00:00]} 2. c4 {[%emt 0:00:05]} c6 {[%emt 0:00:00]} 3. Nf3 {[%emt 0:00:12]} Nf6 {[%emt 0:00:00]} 4. e3 {[%emt 0:00:20]} Bf5 {[%emt 0:00:21]} 5. Nc3 {[%emt 0:01:17]} e6 {[%emt 0:00:26]} 6. Nh4 {[%emt 0:03:13]} Bg6 {[%emt 0:00:24]} 7. Be2 {[%emt 0:00:33]} Nbd7 {[%emt 0:00:38]} 8. O-O {[%emt 0:04:27]} Be7 {[%emt 0:06:25]} 9. g3 {[%emt 0:01:34]} a6 {[%emt 0:04:55]} 10. a4 {[%emt 0:02:27]} a5 {[%emt 0:10:03]} 11. Nxg6 {[%emt 0:09:17]} hxg6 {[%emt 0:00:11]} 12. Qc2 {[%emt 0:00:27]} O-O {[%emt 0:04:52]} 13. Rd1 {[%emt 0:03:45]} Rc8 {[%emt 0:06:46]} 14. e4 {[%emt 0:12:10]} dxe4 {[%emt 0:06:41]} 15. Nxe4 {[%emt 0:01:53]} Nxe4 {[%emt 0:00:38]} 16. Qxe4 {[%emt 0:00:03]} Nf6 {[%emt 0:00:14]} 17. Qc2 {[%emt 0:01:20]} Bb4 {[%emt 0:00:24]} 18. Bf3 {[%emt 0:04:47]} Qe7 {[%emt 0:00:35]} 19. Be3 {[%emt 0:03:14]} Rfd8 {[%emt 0:00:54]} 20. Kg2 {[%emt 0:04:31]} e5 {[%emt 0:03:46]} 21. dxe5 {[%emt 0:02:06]} Qxe5 {[%emt 0:00:35]} 22. Bb6 {[%emt 0:05:31]} Rxd1 {[%emt 0:04:53]} 23. Rxd1 {[%emt 0:00:15]} g5 {[%emt 0:00:21]} 24. h3 {[%emt 0:02:50]} Bc5 {[%emt 0:02:26]} 25. Qb3 {[%emt 0:18:36]} Bb4 {[%emt 0:07:28]} 26. Qe3 {[%emt 0:04:20]} Re8 {[%emt 0:10:28]} 27. Qxe5 {[%emt 0:03:25]} Rxe5 {[%emt 0:00:11]} 28. Bd4 {[%emt 0:02:40]} Re1 {[%emt 0:01:33]} 29. Rxe1 {[%emt 0:00:04]} Bxe1 {[%emt 0:00:13]} 30. Be3 {[%emt 0:00:42]} Nd7 {[%emt 0:03:56]} 31. Bxg5 {[%emt 0:01:08]} Nc5 {[%emt 0:00:07]} 32. Kf1 {[%emt 0:02:02]} Bb4 {[%emt 0:02:42]} 33. Bd1 {[%emt 0:02:26]} Ne4 {[%emt 0:00:07]} 34. Bf4 {[%emt 0:02:15]} Nd2+ {[%emt 0:00:06]} 35. Ke2 {[%emt 0:02:29]} Nxc4 {[%emt 0:00:10]} 36. b3 {[%emt 0:00:10]} Nb6 {[%emt 0:00:36]} 37. Bc2 {[%emt 0:00:51]} Nd5 {[%emt 0:00:21]} 38. Be5 {[%emt 0:00:04]} f6 {[%emt 0:01:06]} 39. Bb2 {[%emt 0:00:28]} Kf7 {[%emt 0:01:30]} 40. h4 {[%emt 0:00:14]} Ke6 {[%emt 0:04:56]} 41. g4 {[%emt 0:00:33]} b5 {[%emt 0:01:14]} 42. h5 {[%emt 0:01:18]} Bd6 {[%emt 0:03:51]} 43. Bf5+ {[%emt 0:00:31]} Ke7 {[%emt 0:00:34]} 44. Be4 {[%emt 0:00:47]} Nb4 {[%emt 0:01:45]} 45. Kf3 {[%emt 0:00:32]} Kf7 {[%emt 0:09:43]} 46. Bc3 {[%emt 0:00:22]} Bc5 {[%emt 0:00:50]} 47. Ke2 {[%emt 0:00:26]} Bb6 {[%emt 0:01:33]} 48. f4 {[%emt 0:00:25]} Bc5 {[%emt 0:01:12]} 49. Kf3 {[%emt 0:00:05]} Bb6 {[%emt 0:00:19]} 50. Bg6+ {[%emt 0:00:37]} Kf8 {[%emt 0:00:30]} 51. g5 {[%emt 0:00:50]} fxg5 {[%emt 0:00:30]} 52. fxg5 {[%emt 0:00:01]} Nd5 {[%emt 0:00:20]} 53. Bd2 {[%emt 0:01:10]} bxa4 {[%emt 0:00:14]} 54. bxa4 {[%emt 0:00:07]} Bd8 {[%emt 0:00:53]} 55. Be4 {[%emt 0:00:54]} Ne7 {[%emt 0:01:20]} 56. Kg4 {[%emt 0:00:32]} Kf7 {[%emt 0:00:14]} 57. Bc3 {[%emt 0:00:17]} Nd5 {[%emt 0:00:28]} 58. Bxd5+ {[%emt 0:00:48]} cxd5 {[%emt 0:00:01]} 59. Kf5 {[%emt 0:00:28]} Bb6 {[%emt 0:00:25]} 60. g6+ {[%emt 0:00:19]} Kf8 {[%emt 0:00:15]} 61. Ke5 {[%emt 0:00:26]} d4 {[%emt 0:01:47]} 62. Bxd4 {[%emt 0:00:19]} Bc7+ {[%emt 0:00:10]} 63. Ke6 {[%emt 0:00:46]} Bf4 {[%emt 0:00:35]} 64. Kd7 {[%emt 0:00:28]} Bd2 {[%emt 0:00:20]} 65. Bc5+ {[%emt 0:00:06]} Kg8 {[%emt 0:00:20]} 66. Kc6 {[%emt 0:00:17]} Bc3 {[%emt 0:00:46]} 67. Kb5 {[%emt 0:00:09]} Bd2 {[%emt 0:00:39]} 68. Bb6 {[%emt 0:00:28]} 1-0

[Event "Hector S Nazzari Memorial 2019"]
[Site "Montevideo"]
[Date "2019.10.15"]
[Round "2.12"]
[White "Belistri, Ubaldo"]
[Black "Saralegui, Mario"]
[Result "1/2-1/2"]
[ECO "A00"]
[WhiteElo "1853"]
[BlackElo "2059"]
[Annotator "NA RC"]
[PlyCount "69"]
[EventDate "2019.10.14"]
[EventType "swiss"]
[EventCountry "URU"]
[SourceTitle "playchess.com"]
[Source "ChessBase"]
[SourceQuality "1"]
[TimeControl "5400+30"]

1. Nc3 {[%emt 0:00:00]} d5 {[%emt 0:00:00]} 2. e4 {[%emt 0:01:19]} d4 {[%emt 0:00:00]} 3. Nce2 {[%emt 0:00:11]} e5 {[%emt 0:00:02]} 4. d3 {[%emt 0:00:32]} Nc6 {[%emt 0:01:33]} 5. Nf3 {[%emt 0:00:46]} f6 {[%emt 0:03:43]} 6. Ng3 {[%emt 0:01:09]} g6 {[%emt 0:00:06]} 7. Be2 {[%emt 0:03:45]} Bg7 {[%emt 0:02:00]} 8. Bd2 {[%emt 0:02:37]} Nge7 {[%emt 0:00:13]} 9. c4 {[%emt 0:08:46]} dxc3 {[%emt 0:01:42]} 10. bxc3 {[%emt 0:00:13]} Be6 {[%emt 0:00:10]} 11. Be3 {[%emt 0:13:34]} Qd7 {[%emt 0:08:02]} 12. d4 {[%emt 0:05:54]} exd4 {[%emt 0:01:32]} 13. cxd4 Bf7 14. d5 {[%emt 0:02:09]} Nd8 {[%emt 0:01:04]} 15. Rc1 {[%emt 0:03:17]} O-O {[%emt 0:00:07]} 16. O-O {[%emt 0:01:33]} c6 {[%emt 0:01:29]} 17. dxc6 {[%emt 0:01:24]} Qxd1 {[%emt 0:00:09]} 18. Rfxd1 Ndxc6 19. Bc4 {[%emt 0:02:45]} Rfd8 {[%emt 0:02:01]} 20. Bxf7+ {[%emt 0:01:14]} Kxf7 {[%emt 0:00:27]} 21. h4 {[%emt 0:00:47]} b6 {[%emt 0:01:54]} 22. Nd4 {[%emt 0:06:16]} Nxd4 {[%emt 0:11:51]} 23. Bxd4 {[%emt 0:01:06]} Rac8 {[%emt 0:00:07]} 24. Ne2 {[%emt 0:04:12]} Bh6 {[%emt 0:02:51]} 25. f4 {[%emt 0:05:27]} Rxc1 {[%emt 0:03:01]} 26. Rxc1 Bxf4 27. Bxb6 {[%emt 0:06:04]} Bxc1 {[%emt 0:14:49]} 28. Bxd8 {[%emt 0:00:18]} Be3+ {[%emt 0:00:06]} 29. Kf1 {[%emt 0:00:36]} Nc6 {[%emt 0:00:06]} 30. Bc7 {[%emt 0:00:48]} Ke6 {[%emt 0:09:30]} 31. Nf4+ {[%emt 0:05:44]} Kd7 {[%emt 0:03:13]} 32. Nd5 {[%emt 0:00:39]} Bd4 {[%emt 0:00:53]} 33. Bg3 {[%emt 0:03:24]} Ke6 {[%emt 0:00:55]} 34. Nf4+ {[%emt 0:00:51]} Kd7 {[%emt 0:04:46]} 35. Nd5 {[%emt 0:00:31]} 1/2-1/2

[Event "Hector S Nazzari Memorial 2019"]
[Site "Montevideo"]
[Date "2019.10.15"]
[Round "2.13"]
[White "Bustelo, Tabare"]
[Black "Ramos Correa, Gabriel"]
[Result "1-0"]
[ECO "A00"]
[WhiteElo "2054"]
[BlackElo "1889"]
[Annotator "NA RC"]
[PlyCount "71"]
[EventDate "2019.10.14"]
[EventType "swiss"]
[EventCountry "URU"]
[SourceTitle "playchess.com"]
[Source "ChessBase"]
[SourceQuality "1"]
[TimeControl "5400+30"]

1. Nc3 {[%emt 0:00:26]} c5 2. Nf3 {[%emt 0:00:47]} d6 {[%emt 0:00:08]} 3. d4 {[%emt 0:01:57]} cxd4 {[%emt 0:00:44]} 4. Nxd4 {[%emt 0:00:08]} g6 {[%emt 0:03:02]} 5. e4 {[%emt 0:01:17]} Bg7 {[%emt 0:00:32]} 6. Bb5+ {[%emt 0:04:42]} Bd7 {[%emt 0:00:29]} 7. O-O {[%emt 0:00:49]} Nf6 {[%emt 0:02:00]} 8. a4 {[%emt 0:03:01]} O-O {[%emt 0:00:46]} 9. Be3 {[%emt 0:00:20]} Nc6 {[%emt 0:02:06]} 10. f3 {[%emt 0:09:43]} Qc7 {[%emt 0:13:13]} 11. Qd2 {[%emt 0:02:21]} Rfc8 {[%emt 0:07:30]} 12. Rad1 {[%emt 0:10:09]} a6 {[%emt 0:10:26]} 13. Bxc6 {[%emt 0:06:01]} bxc6 {[%emt 0:02:24]} 14. Nb3 {[%emt 0:02:10]} Be6 {[%emt 0:02:11]} 15. Nd4 {[%emt 0:00:20]} Bd7 {[%emt 0:01:08]} 16. Qf2 {[%emt 0:02:37]} Rcb8 {[%emt 0:06:18]} 17. b3 {[%emt 0:01:05]} e5 {[%emt 0:09:57]} 18. Nde2 {[%emt 0:04:20]} Be6 {[%emt 0:00:43]} 19. a5 {[%emt 0:04:15]} Nd7 {[%emt 0:03:34]} 20. Na4 {[%emt 0:00:24]} d5 {[%emt 0:04:46]} 21. Nb6 {[%emt 0:01:50]} Nxb6 {[%emt 0:00:39]} 22. axb6 {[%emt 0:01:44]} Qb7 {[%emt 0:02:06]} 23. Bc5 {[%emt 0:00:36]} Bf8 {[%emt 0:00:57]} 24. b4 {[%emt 0:01:26]} a5 {[%emt 0:03:44]} 25. c3 {[%emt 0:04:03]} axb4 {[%emt 0:01:18]} 26. cxb4 {[%emt 0:00:03]} Ra2 {[%emt 0:03:40]} 27. Ra1 {[%emt 0:04:37]} Rba8 {[%emt 0:00:45]} 28. Rxa2 {[%emt 0:08:08]} Rxa2 {[%emt 0:00:02]} 29. Bxf8 {[%emt 0:02:48]} Kxf8 {[%emt 0:00:15]} 30. f4 {[%emt 0:00:19]} exf4 {[%emt 0:10:14]} 31. Qc5+ {[%emt 0:01:10]} Kg8 {[%emt 0:00:59]} 32. Nxf4 {[%emt 0:00:10]} Bd7 {[%emt 0:01:19]} 33. exd5 {[%emt 0:01:06]} cxd5 {[%emt 0:00:46]} 34. Nxd5 {[%emt 0:02:55]} Bc6 {[%emt 0:04:15]} 35. Qxc6 {[%emt 0:00:14]} Rxg2+ {[%emt 0:01:20]} 36. Kh1 {[%emt 0:00:28]} 1-0